Cogmind - Beta 10.2 *** ADVENTURER MODE // 2022.02.09 @ 09:47:19 Player: Kaz Result: Destroyed by C-40 Crusher with Compactor Performance ------------- Evolutions (6) 3000 Regions Visited (14) 2800 Robots Destroyed (286) 1430 Value Destroyed (10169) 10169 Prototype IDs (14) 280 Alien Tech Used (0) 0 Bonus (521) 521 TOTAL SCORE: 18200 Bonus ------- High Alert Combat Kills 521 Cogmind --------- Core Integrity 0/1150 Matter 142/300 Energy 100/100 System Corruption 4% Temperature Cool (0) Movement Core (50) Location -4/Waste Parts ------- > --- POWER (2) -------- (None) > --- PROPULSION (4) --- (None) > --- UTILITY (8) ------ (None) > --- WEAPON (5) ------- (None) > --- INVENTORY (4) ---- Medium Treads Improved Cooling System Improved Matter Compressor (0) Peak State ------------ > --- POWER ------------ Angular Momentum Engine Angular Momentum Engine > --- PROPULSION ------- Carbon-fiber Leg Carbon-fiber Leg Carbon-fiber Leg Flexi-carbon Leg > --- UTILITY ---------- Advanced Cooling System High-capacity Storage Unit High-capacity Storage Unit Matter Compressor Improved Matter Compressor Layered Light Armor Plating Advanced Shield Generator > --- WEAPON ----------- Advanced Assault Cannon Mass Driver Mass Driver Mass Driver Mass Driver > --- INVENTORY -------- Angular Momentum Engine Angular Momentum Engine Neutrino Core Neutrino Core Medium Treads Wheel Improved Cooling System Advanced Cooling System Advanced Cooling System High-capacity Storage Unit Compact Battery Compact Battery Advanced Weight Redist. System Field Recycling Unit Enhanced Force Rifle Gauss Rifle Advanced Assault Cannon Great Axe [Rating: 89] Favorites ----------- Power Light Angular Momentum Engine Engine Light Angular Momentum Engine Power Core Light Nuclear Core Reactor Fusion Reactor Propulsion Wheel Treads Armored Treads Leg Carbon-fiber Leg Wheel Wheel Hover Unit Antigrav System Flight Unit VTOL Module Utility High-capacity Storage Unit Device Improved Cooling System Storage High-capacity Storage Unit Protection Layered Light Armor Plating Weapon Advanced Assault Cannon Energy Gun Heavy Particle Gun Energy Cannon Heavy Ion Cannon Ballistic Gun Gauss Rifle Ballistic Cannon Advanced Assault Cannon Special Weapon Mining Laser Impact Weapon Maul Slashing Weapon Great Axe Piercing Weapon Makeshift Spear Build | -11 -10 -10 -9 -9 -9 -8 -8 -7 -6 -6 -6 -5 -4 -4 ------- Run | Scr Mat Min Mat Min Exi Min Mat Fac Fac Low Low Fac Fac Was Slots Evolved 12 | . . . 2 . . . 2 2 2 . . 2 2 . Power 1 | . . . . . . . . . 1 . . . . . Propulsion 2 | . . . . . . . . 1 . . . 1 . . Utility 6 | . . . 2 . . . 1 1 . . . 1 1 . Weapon 3 | . . . . . . . 1 . 1 . . . 1 . Parts Attached 235 | 5 18 2 27 . . . 34 49 23 6 . 54 13 4 Power 34 | 1 1 . 5 . . . 5 9 3 . . 9 . 1 Engine 23 | 1 1 . 5 . . . 3 6 3 . . 4 . . Core 10 | . . . . . . . 2 3 . . . 4 . 1 Reactor 1 | . . . . . . . . . . . . 1 . . Propulsion 52 | 2 3 2 10 . . . 7 5 5 . . 15 1 2 Treads 10 | . . . . . . . 4 . 2 . . 2 1 1 Leg 4 | . . . . . . . . . . . . 4 . . Wheel 36 | 2 3 2 10 . . . 3 5 3 . . 7 . 1 Hover 1 | . . . . . . . . . . . . 1 . . Flight 1 | . . . . . . . . . . . . 1 . . Utility 71 | 1 6 . 9 . . . 12 14 9 . . 14 6 . Device 26 | . . . 3 . . . 5 5 2 . . 8 3 . Storage 22 | 1 6 . 3 . . . 2 3 3 . . 2 2 . Processor . | . . . . . . . . . . . . . . . Hackware . | . . . . . . . . . . . . . . . Protection 23 | . . . 3 . . . 5 6 4 . . 4 1 . Artifact . | . . . . . . . . . . . . . . . Weapon 78 | 1 8 . 3 . . . 10 21 6 6 . 16 6 1 Energy Gun 20 | 1 2 . . . . . 1 10 1 2 . 2 1 . Energy Cannon 12 | . . . . . . . . 4 3 2 . 2 . 1 Ballistic Gun 19 | . . . 2 . . . 4 2 1 1 . 7 2 . Ballistic Cannon 20 | . 2 . 1 . . . 4 5 1 . . 5 2 . Launcher . | . . . . . . . . . . . . . . . Special Weapon 4 | . 4 . . . . . . . . . . . . . Impact Weapon 1 | . . . . . . . 1 . . . . . . . Slashing Weapon 1 | . . . . . . . . . . . . . 1 . Piercing Weapon 1 | . . . . . . . . . . 1 . . . . Special Melee Weapon . | . . . . . . . . . . . . . . . Unidentified Prototypes 12 | . . . . . . . 2 7 . . . 3 . . Parts Lost 75 | . 2 1 5 . . . 16 4 3 6 1 14 10 13 Power 11 | . . . 2 . . . 2 1 1 . . 2 1 2 Propulsion 21 | . . 1 2 . . . 5 . 1 1 1 5 3 2 Utility 20 | . . . 1 . . . 5 2 1 . . 4 3 4 Weapon 23 | . 2 . . . . . 4 1 . 5 . 3 3 5 Highest Loss Streak 12 | . 1 1 2 . . . 4 2 2 4 1 6 9 12 Average Slot Usage (%) 91 | . 92 95 91 100 100 100 89 92 86 98 87 94 83 61 Engine 7 | . 10 14 9 11 11 11 4 4 12 13 13 4 7 3 Core 1 | . . . . . . . 3 2 . . . 4 . . Treads 5 | . . . . . . . 10 2 . 13 7 7 2 5 Leg 1 | . . . . . . . . . . . . 4 13 3 Wheel 10 | . 27 23 20 22 22 22 5 13 12 5 . 8 . 1 Device 6 | . . . . . . . 7 7 6 6 6 7 11 11 Storage 23 | . 26 28 32 33 33 33 25 23 20 20 20 22 19 15 Protection 9 | . . . 7 11 11 11 7 14 7 13 13 7 5 2 Energy Gun 5 | . 7 . . . . . 4 9 3 5 6 4 . . Energy Cannon 1 | . . . . . . . . 1 8 . . 1 . . Ballistic Gun 6 | . . . 8 22 22 22 4 2 6 11 6 8 2 6 Ballistic Cannon 7 | . 10 28 12 . . . 10 6 6 6 6 6 15 5 Impact Weapon 1 | . . . . . . . 5 1 . . . . . . Naked Turns 34 | . . . . . . . . . . . . . . 34 Heaviest Build 152 | 10 41 41 83 83 83 83 102 107 131 128 118 152 148 129 Greatest Support 65 | 20 20 20 32 20 20 20 40 40 44 40 40 65 65 60 Greatest Overweight (x) 35 | . 2 4 22 4 4 4 33 3 35 3 5 8 5 3 Average Overweight (x) 2 | . 1 2 2 4 4 4 3 2 2 2 4 4 2 1 Largest Inventory Capacity 20 | 6 16 16 20 20 20 20 20 20 20 20 20 20 20 20 Average Capacity 19 | 4 11 16 17 20 20 20 20 20 20 20 20 20 20 15 Most Carried 20 | 4 10 10 13 10 11 11 20 20 20 16 17 20 19 13 Average Carried 15 | 2 5 8 8 10 10 11 14 18 19 14 15 18 16 9 Final Capacity 20 | 6 16 16 20 20 20 20 20 20 20 20 20 20 20 4 Final Carried 19 | 2 8 9 10 10 11 11 17 19 16 16 16 19 13 3 Class Distribution -------------------- 53% | Hauler-Tank 22% | Hauler-Mutant 13% | Scavenger-Tank 10% | Mutant Dominant Class ---------------- Mutant | -10/Materials Mutant | -10/Mines Mutant | -9/Materials Hauler-Mutant | -9/Mines Hauler-Mutant | -9/Exiles Hauler-Mutant | -8/Mines Hauler-Mutant | -8/Materials Hauler-Tank | -7/Factory Hauler-Tank | -6/Factory Hauler-Tank | -6/Lower Caves Hauler-Tank | -6/Lower Caves Scavenger-Tank | -5/Factory Hauler-Tank | -4/Factory Scavenger-Tank | -4/Waste Resources | -11 -10 -10 -9 -9 -9 -8 -8 -7 -6 -6 -6 -5 -4 -4 ----------- Run | Scr Mat Min Mat Min Exi Min Mat Fac Fac Low Low Fac Fac Was Matter Collected 8943 | 175 487 42 711 . . 100 1558 1813 1114 463 155 1731 594 . Remotely . | . . . . . . . . . . . . . . . Salvage Created 10971 | . 357 10 711 . . 34 1756 2079 1988 652 374 2289 721 . Parts 567 | . 25 . 49 . . 4 107 107 79 23 15 125 33 . Haulers Intercepted 19 | . 1 . 4 . . . 4 4 3 . . 3 . . Recyclers Shooed 3 | . . . . . . . 1 1 . . . . 1 . Parts Field Recycled 12 | . . . . . . . . . . . . 5 7 . Retrieved Matter 56 | . . . . . . . . . . . . 32 24 . Parts Self-Destructed 39 | . . . . . . . . . . 25 14 . . . Prevented . | . . . . . . . . . . . . . . . Kills | -11 -10 -10 -9 -9 -9 -8 -8 -7 -6 -6 -6 -5 -4 -4 ------- Run | Scr Mat Min Mat Min Exi Min Mat Fac Fac Low Low Fac Fac Was Combat Hostiles Destroyed 196 | . 12 2 14 . . 2 33 41 20 13 8 36 15 . Melee 1 | . . . . . . . . . . . . . 1 . Guns 79 | . 3 . 3 . . 2 13 15 5 5 3 27 3 . Cannons 114 | . 9 2 11 . . . 19 26 15 8 5 8 11 . AOE 1 | . . . . . . . . . . . . 1 . . Classes Destroyed 16 | . 6 1 3 . . . 3 1 1 1 . . . . Worker 20 | . 1 . 2 . . . 5 4 3 . . 1 4 . Builder 20 | . 1 . . . . . 6 4 1 . . 7 1 . Tunneler 2 | . 1 . . . . . . . . . . . 1 . Hauler 19 | . 1 . 4 . . . 4 4 3 . . 3 . . Recycler 11 | . . . 1 . . . 1 2 5 . . 2 . . Operator 5 | . . . . . . . 1 3 1 . . . . . Watcher 15 | . . . 1 . . . 4 3 3 . . 3 1 . Swarmer 40 | . 3 . 3 . . 2 4 9 3 2 . 14 . . Grunt 78 | . 9 . 5 . . . 16 17 8 4 5 7 7 . Brawler 9 | . . . . . . . 1 . 1 4 1 2 . . Duelist 2 | . . . . . . . . . 1 . 1 . . . Sentry 34 | . . . 6 . . . 10 9 4 2 . 2 1 . Hunter 13 | . . . . . . . 2 1 2 . . 4 4 . Programmer 16 | . . . . . . . . 5 1 . 1 6 3 . Behemoth 2 | . . . . . . . . . . 1 . 1 . . Assembled 2 | . . 2 . . . . . . . . . . . . Best Kill Streak 11 | . 4 2 8 . . 2 9 5 6 5 3 7 11 . Combat Bots Only 7 | . 3 2 5 . . 2 4 4 4 5 3 5 7 . Max Kills in Single Turn 2 | . 1 1 2 . . 1 2 2 2 1 1 2 2 . Gunslinging 1 | . . . . . . . . . . . . 1 . . Exploded 1 | . . . . . . . . . . . . 1 . . Melee 1 | . . . . . . . . . . . . . 1 . Uniques/NPCs Destroyed . | . . . . . . . . . . . . . . . Combat | -11 -10 -10 -9 -9 -9 -8 -8 -7 -6 -6 -6 -5 -4 -4 -------- Run | Scr Mat Min Mat Min Exi Min Mat Fac Fac Low Low Fac Fac Was Damage Taken 15216 | . 358 44 869 . . 31 2333 2376 1517 1526 282 2588 2097 1195 Core 2667 | . 89 25 157 . . 8 314 306 247 105 46 181 159 1030 Absorbed by Shields 648 | . . . . . . . . . . . . 95 553 . Core Remaining (%) 63 | 100 . 54 . . . 58 42 56 . . 53 81 . . Volleys Fired 630 | . 53 6 64 . . 3 103 133 73 31 16 93 52 3 Largest 5 | . 2 2 2 . . 2 3 3 4 4 3 4 5 4 Hottest 276 | . 140 70 70 . . 46 144 170 231 214 145 259 276 166 Shots Fired 1802 | . 88 12 128 . . 6 265 384 254 101 48 349 159 8 Gun 858 | . 27 . 34 . . 6 105 243 86 59 32 234 29 3 Cannon 919 | . 36 12 94 . . . 160 141 168 42 16 115 130 5 Launcher . | . . . . . . . . . . . . . . . Special 25 | . 25 . . . . . . . . . . . . . Kinetic 1228 | . 36 12 128 . . 6 238 171 137 74 32 247 140 7 Thermal 559 | . 52 . . . . . 27 213 117 27 16 88 19 . Explosive . | . . . . . . . . . . . . . . . Electromagnetic 15 | . . . . . . . . . . . . 14 . 1 Robot Hit Streak 33 | . 19 3 23 . . 11 18 33 20 22 29 21 13 21 Robot Miss Streak 5 | . 4 2 4 . . 1 2 4 4 2 1 2 5 . Penetration Max 1 | . . . . . . . . 1 1 1 . 1 1 . Secondary Targets 2 | . . . 1 . . . . . . . . 1 . . Max Gunslinging Chain 1 | . . . 1 . . . . . . . . 1 . . Shots Hit Robots 1236 | . 63 6 91 . . 4 191 246 160 74 39 246 107 9 Core Hits 479 | . 27 3 29 . . 2 76 94 65 26 18 92 47 . Critical Hits 40 | . . . 1 . . . 3 4 2 5 . 21 4 . Critical Kills 16 | . . . . . . . 3 2 1 1 . 8 1 . Critical Parts Destroyed 20 | . . . 1 . . . . 2 1 3 . 11 2 . Melee Attacks 16 | . . . . . . . 8 . . . 1 . 6 1 Impact 8 | . . . . . . . 8 . . . . . . . Slashing 7 | . . . . . . . . . . . . . 6 1 Piercing 1 | . . . . . . . . . . . 1 . . . Sneak Attacks 2 | . . . . . . . 2 . . . . . . . Combat Hostiles . | . . . . . . . . . . . . . . . Follow-up Attacks . | . . . . . . . . . . . . . . . Damage Inflicted 29432 | . 837 74 1616 . . 60 4463 5859 4005 1675 846 6151 3640 206 Guns 11357 | . 273 . 459 . . 60 1354 2834 1010 925 462 3315 591 74 Cannons 16918 | . 356 74 1157 . . . 2746 2974 2937 750 353 2708 2746 117 Explosions 244 | . . . . . . . . 51 . . . 128 65 . Melee 630 | . . . . . . . 346 . . . 31 . 238 15 Ramming 97 | . 22 . . . . . 17 . 58 . . . . . Kinetic 21125 | . 356 74 1616 . . 60 3654 3281 2306 1332 702 4530 3026 188 Thermal 7262 | . 459 . . . . . 446 2578 1641 343 113 1371 311 . Explosive 65 | . . . . . . . . . . . . . 65 . Electromagnetic 253 | . . . . . . . . . . . . 250 . 3 Impact 346 | . . . . . . . 346 . . . . . . . Slashing 253 | . . . . . . . . . . . . . 238 15 Piercing 31 | . . . . . . . . . . . 31 . . . Highest Corruption 5 | . . . . . . . 5 3 . . . 4 4 4 Average Corruption 2 | . . . . . . . 4 1 . . . 3 1 4 Corruption Purged . | . . . . . . . . . . . . . . . Effects 118 | . . . . . . . 55 29 . . . 25 1 8 Message Errors 31 | . . . . . . . 7 12 . . . 9 . 3 Matter Fused 15 | . . . . . . . 10 . . . . 3 . 2 Heat Flow Errors 12 | . . . . . . . 9 3 . . . . . . Energy Discharges 25 | . . . . . . . 5 9 . . . 8 1 2 Parts Rejected 1 | . . . . . . . 1 . . . . . . . Data Loss (minor) 10 | . . . . . . . 5 3 . . . 2 . . Data Loss (major) 2 | . . . . . . . 2 . . . . . . . Misfires 1 | . . . . . . . 1 . . . . . . . Targeting Errors 15 | . . . . . . . 11 2 . . . 2 . . Weapon Failures 6 | . . . . . . . 4 . . . . 1 . 1 Overload Shots . | . . . . . . . . . . . . . . . Overflow Damage 404 | . . . . . . . 145 46 38 . . 41 134 . Projectiles 317 | . . . . . . . 76 46 20 . . 41 134 . Explosions . | . . . . . . . . . . . . . . . Melee 87 | . . . . . . . 69 . 18 . . . . . Knockbacks 133 | . 8 1 14 . . . 22 17 22 1 3 13 32 . Impact 4 | . . . . . . . 3 . 1 . . . . . Kinetic 118 | . 8 1 11 . . . 17 17 21 1 3 12 27 . Secondary 11 | . . . 3 . . . 2 . . . . 1 5 . Self-Inflicted Damage 163 | . 10 . . . . . 8 . 29 . . 116 . . Shots 2 | . . . . . . . . . . . . 2 . . Rammed 4 | . 2 . . . . . 1 . 1 . . . . . Targets Rammed 4 | . 2 . . . . . 1 . 1 . . . . . Kicked . | . . . . . . . . . . . . . . . Crushed . | . . . . . . . . . . . . . . . Highest Temperature 799 | . 240 36 174 . . 16 246 354 799 316 235 453 438 2 Average Temperature 110 | . 59 16 54 . . 8 59 93 170 115 85 140 167 1 Received Heat Transfer 4200 | . 189 . 384 . . . 1368 666 516 384 171 279 243 . Effects 38 | . . . . . . . . . 22 . . 12 4 . Shutdowns 9 | . . . . . . . . . 4 . . 3 2 . Energy Bleed 4 | . . . . . . . . . 2 . . 2 . . Interference 11 | . . . . . . . . . 6 . . 5 . . Short Circuit 3 | . . . . . . . . . 2 . . . 1 . Damage (minor) 6 | . . . . . . . . . 3 . . 2 1 . Damage (major) 4 | . . . . . . . . . 4 . . . . . Damage (core) 1 | . . . . . . . . . 1 . . . . . Siege Activations . | . . . . . . . . . . . . . . . Robots Corrupted . | . . . . . . . . . . . . . . . Combat Hostiles . | . . . . . . . . . . . . . . . Parts Fried 8 | . . . . . . . 3 . . . . 5 . . Impact Corruptions 7 | . . . . . . . 5 . 1 . . 1 . . Robots Melted . | . . . . . . . . . . . . . . . Combat Hostiles . | . . . . . . . . . . . . . . . Parts Melted 11 | . 1 . . . . . 1 4 2 . . 3 . . Heat Transferred 12162 | . 1250 . . . . . 888 4638 2448 568 222 1667 481 . Parts Sabotaged . | . . . . . . . . . . . . . . . Parts Stolen . | . . . . . . . . . . . . . . . Parts Stripped . | . . . . . . . . . . . . . . . Power Chain Reactions 1 | . . . . . . . . . . . . 1 . . Missiles Intercepted . | . . . . . . . . . . . . . . . Alert | -11 -10 -10 -9 -9 -9 -8 -8 -7 -6 -6 -6 -5 -4 -4 ------- Run | Scr Mat Min Mat Min Exi Min Mat Fac Fac Low Low Fac Fac Was Peak Influence 646 | . 212 . 358 47 . 50 646 625 367 . . 425 581 132 Initial 189 | . . . . 47 . . 16 28 189 . . 12 91 132 Average 206 | . 86 . 230 47 . 27 322 190 210 . . 156 356 88 Maximum Alert Level 2 | . 1 . 1 . . . 2 2 1 . . 2 2 . Low Security (%) 52 | 100 91 100 24 100 . 100 19 59 49 . . 65 30 100 Level 1 34 | . 8 . 75 . . . 58 18 50 . . 33 13 . Level 2 12 | . . . . . . . 21 22 . . . . 55 . Level 3 . | . . . . . . . . . . . . . . . Level 4 . | . . . . . . . . . . . . . . . Level 5 . | . . . . . . . . . . . . . . . High Security . | . . . . . . . . . . . . . . . Max Security . | . . . . . . . . . . . . . . . Squads Dispatched 47 | . 3 . 2 . . . 2 21 6 . . 7 6 . Investigation 6 | . 3 . . . . . . 2 1 . . . . . Extermination 11 | . . . . . . . . 5 1 . . 4 1 . Reinforcement 19 | . . . 2 . . . 2 8 3 . . 3 1 . Assault . | . . . . . . . . . . . . . . . Garrison 11 | . . . . . . . . 6 1 . . . 4 . Intercept . | . . . . . . . . . . . . . . . Construction Impeded 5 | . . . . . . . . 2 1 . . 1 1 . Haulers Reinforced 4 | . . . . . . . . 1 1 . . 2 . . Stealth | -11 -10 -10 -9 -9 -9 -8 -8 -7 -6 -6 -6 -5 -4 -4 --------- Run | Scr Mat Min Mat Min Exi Min Mat Fac Fac Low Low Fac Fac Was Distress Signals 11 | . 1 . 2 . . . 3 1 1 . . 2 1 . Communications Jammed . | . . . . . . . . . . . . . . . Distress Signals . | . . . . . . . . . . . . . . . Times Spotted 279 | . 20 6 24 . . 3 42 61 30 15 7 49 18 4 Peak Tracking Total 7 | . 4 3 7 . . 3 6 5 4 7 4 5 7 4 Tactical Retreats 14 | . . 1 1 . . . . 5 2 . . 5 . . Traps | -11 -10 -10 -9 -9 -9 -8 -8 -7 -6 -6 -6 -5 -4 -4 ------- Run | Scr Mat Min Mat Min Exi Min Mat Fac Fac Low Low Fac Fac Was Traps Triggered 16 | . 4 . 3 . . . 1 5 2 . . . 1 . Indirectly . | . . . . . . . . . . . . . . . Trap Hack Attempts . | . . . . . . . . . . . . . . . Triggered . | . . . . . . . . . . . . . . . Disarmed . | . . . . . . . . . . . . . . . Reprogrammed . | . . . . . . . . . . . . . . . Reused . | . . . . . . . . . . . . . . . Traps Extracted . | . . . . . . . . . . . . . . . Installed . | . . . . . . . . . . . . . . . Triggered . | . . . . . . . . . . . . . . . Machines | -11 -10 -10 -9 -9 -9 -8 -8 -7 -6 -6 -6 -5 -4 -4 ---------- Run | Scr Mat Min Mat Min Exi Min Mat Fac Fac Low Low Fac Fac Was Machines Disabled 39 | . . . 1 . . . 5 10 8 . . 8 7 . Max in Single Turn 9 | . . . 1 . . . 1 9 2 . . 2 4 . Garrison Access 1 | . . . . . . . . . 1 . . . . . Machines Sabotaged . | . . . . . . . . . . . . . . . Garrisons Compromised . | . . . . . . . . . . . . . . . Overloaded Fab Kills . | . . . . . . . . . . . . . . . Fab Network Shutdowns . | . . . . . . . . . . . . . . . Hacking | -11 -10 -10 -9 -9 -9 -8 -8 -7 -6 -6 -6 -5 -4 -4 --------- Run | Scr Mat Min Mat Min Exi Min Mat Fac Fac Low Low Fac Fac Was Machines Accessed 15 | . 4 . 2 . . . . 3 3 . . 3 . . Terminals 4 | . 3 . . . . . . . . . . 1 . . Fabricators . | . . . . . . . . . . . . . . . Repair Stations 8 | . 1 . 1 . . . . 2 2 . . 2 . . Recycling Units 1 | . . . . . . . . 1 . . . . . . Scanalyzers 1 | . . . 1 . . . . . . . . . . . Garrison Access 1 | . . . . . . . . . 1 . . . . . Total Hacks 43 | . 13 . 3 . . . . 11 7 . . 9 . . Successful 36 | . 12 . 2 . . . . 10 4 . . 8 . . Failed 7 | . 1 . 1 . . . . 1 3 . . 1 . . Catastrophic . | . . . . . . . . . . . . . . . Database Lockouts . | . . . . . . . . . . . . . . . Manual . | . . . . . . . . . . . . . . . Terminals 11 | . 9 . . . . . . . . . . 2 . . Fabricators . | . . . . . . . . . . . . . . . Repair Stations 25 | . 4 . 2 . . . . 7 5 . . 7 . . Recycling Units 4 | . . . . . . . . 4 . . . . . . Scanalyzers 1 | . . . 1 . . . . . . . . . . . Garrison Access 2 | . . . . . . . . . 2 . . . . . Terminal Hacks 10 | . 8 . . . . . . . . . . 2 . . Record 6 | . 4 . . . . . . . . . . 2 . . Prototype ID Bank 1 | . 1 . . . . . . . . . . . . . Alert Level 1 | . 1 . . . . . . . . . . . . . Dispatch Records 1 | . 1 . . . . . . . . . . . . . Hauler Manifests 1 | . 1 . . . . . . . . . . . . . Fabricator Hacks . | . . . . . . . . . . . . . . . Repair Station Hacks 21 | . 4 . 2 . . . . 6 3 . . 6 . . Scan Component 12 | . 2 . 1 . . . . 4 2 . . 3 . . Repair 9 | . 2 . 1 . . . . 2 1 . . 3 . . Recycling Unit Hacks 4 | . . . . . . . . 4 . . . . . . Recycle Component 1 | . . . . . . . . 1 . . . . . . Process 1 | . . . . . . . . 1 . . . . . . Report Inventory 1 | . . . . . . . . 1 . . . . . . Retrieve Matter 1 | . . . . . . . . 1 . . . . . . Scanalyzer . | . . . . . . . . . . . . . . . Garrison Access Hacks 1 | . . . . . . . . . 1 . . . . . Seal Access 1 | . . . . . . . . . 1 . . . . . Unauthorized Hacks . | . . . . . . . . . . . . . . . Terminals . | . . . . . . . . . . . . . . . Fabricators . | . . . . . . . . . . . . . . . Repair Stations . | . . . . . . . . . . . . . . . Recycling Units . | . . . . . . . . . . . . . . . Scanalyzers . | . . . . . . . . . . . . . . . Garrison Access . | . . . . . . . . . . . . . . . Data Cores Recovered 1 | . . . . . . . . 1 . . . . . . Used . | . . . . . . . . . . . . . . . Hacking Detections 10 | . 2 . . . . . . 3 3 . . 2 . . Full Trace Events 4 | . 2 . . . . . . 1 1 . . . . . Feedback Events . | . . . . . . . . . . . . . . . Feedback Blocked . | . . . . . . . . . . . . . . . Robot Schematics Acquired . | . . . . . . . . . . . . . . . Robots Built . | . . . . . . . . . . . . . . . Matter . | . . . . . . . . . . . . . . . Time . | . . . . . . . . . . . . . . . Total Robot Build Rating . | . . . . . . . . . . . . . . . Part Schematics Acquired . | . . . . . . . . . . . . . . . Parts Built . | . . . . . . . . . . . . . . . Matter . | . . . . . . . . . . . . . . . Time . | . . . . . . . . . . . . . . . Total Part Build Rating . | . . . . . . . . . . . . . . . Parts Repaired 9 | . 2 . 1 . . . . 2 1 . . 3 . . Time 254 | . 52 . 32 . . . . 70 26 . . 74 . . Parts Recycled 1 | . . . . . . . . 1 . . . . . . Recycled Matter 47 | . . . . . . . . 47 . . . . . . Retrieved Matter 47 | . . . . . . . . 47 . . . . . . Retrieved Components . | . . . . . . . . . . . . . . . Parts Scanalyzed . | . . . . . . . . . . . . . . . Part Schematics Acquired . | . . . . . . . . . . . . . . . Parts Damaged . | . . . . . . . . . . . . . . . Bothacking | -11 -10 -10 -9 -9 -9 -8 -8 -7 -6 -6 -6 -5 -4 -4 ------------ Run | Scr Mat Min Mat Min Exi Min Mat Fac Fac Low Low Fac Fac Was Used RIF Installer . | . . . . . . . . . . . . . . . Robots Hacked . | . . . . . . . . . . . . . . . Non-combat . | . . . . . . . . . . . . . . . Combat . | . . . . . . . . . . . . . . . Robot Hacks Applied . | . . . . . . . . . . . . . . . Relay Couplers Released . | . . . . . . . . . . . . . . . Robots Rewired . | . . . . . . . . . . . . . . . Allies Hacked . | . . . . . . . . . . . . . . . Hacks Repelled . | . . . . . . . . . . . . . . . Allies | -11 -10 -10 -9 -9 -9 -8 -8 -7 -6 -6 -6 -5 -4 -4 -------- Run | Scr Mat Min Mat Min Exi Min Mat Fac Fac Low Low Fac Fac Was Total Allies 1 | . . . . . . . . . . . . . . 1 Largest Group 1 | . . . . . . . . . . . . . . 1 Highest-Rated Group 46 | . . . . . . . . . . . . . . 46 Highest-Rated Ally 46 | . . . . . . . . . . . . . . 46 Total Orders . | . . . . . . . . . . . . . . . Ally Attacks 6 | . . . . . . . . . . . . . . 6 Total Damage 130 | . . . . . . . . . . . . . . 130 Kills . | . . . . . . . . . . . . . . . Allies Corrupted . | . . . . . . . . . . . . . . . Allies Melted . | . . . . . . . . . . . . . . . Intel | -11 -10 -10 -9 -9 -9 -8 -8 -7 -6 -6 -6 -5 -4 -4 ------- Run | Scr Mat Min Mat Min Exi Min Mat Fac Fac Low Low Fac Fac Was Robot Analysis Total . | . . . . . . . . . . . . . . . Derelict Logs Recovered 4 | . . 1 . . . . . . . 2 1 . . . Drone Launches . | . . . . . . . . . . . . . . . Drone Recoveries . | . . . . . . . . . . . . . . . Exploration | -11 -10 -10 -9 -9 -9 -8 -8 -7 -6 -6 -6 -5 -4 -4 ------------- Run | Scr Mat Min Mat Min Exi Min Mat Fac Fac Low Low Fac Fac Was Turns Passed 14247 | 42 827 127 811 129 48 107 2140 3340 1616 1642 480 2282 524 132 Spaces Moved 7519 | 39 584 92 491 108 40 83 914 1988 952 670 163 1176 165 54 Core 29 | 3 . . 1 . . . 8 . 4 . . . . 13 Treads 1778 | . . . . . . . 551 244 15 670 163 45 49 41 Legs 321 | . . . . . . . . . . . . 205 116 . Wheels 5391 | 36 584 92 490 108 40 83 355 1744 933 . . 926 . . Hover . | . . . . . . . . . . . . . . . Flight . | . . . . . . . . . . . . . . . Fastest Speed 50 | 50 80 100 100 120 120 120 120 110 120 210 210 110 180 50 Average Speed 148 | 77 92 105 114 120 120 120 185 131 129 228 259 147 198 166 Slowest Speed 1800 | 80 100 120 1150 120 120 120 1700 205 1800 230 270 270 270 220 Overloaded Moves . | . . . . . . . . . . . . . . . Propulsion Burnouts . | . . . . . . . . . . . . . . . Robots Hopped . | . . . . . . . . . . . . . . . Cave-ins Triggered . | . . . . . . . . . . . . . . . Exploration Rate (%) 37 | 3 86 31 49 32 9 37 74 40 28 83 15 29 7 38 Regions Visited 14 Branch Regions 6 Pre-discovered Areas 1 | . . 1 . . . . . . . . . . . . Known Exits Taken 1 | . . . . . . . . . . 1 . . . . Unknown Exits Taken 12 | 1 1 1 1 1 1 1 1 1 1 . 1 1 . . Scrap Searched 6 | . . . . . . 1 . . . 3 2 . . . Spaces Dug . | . . . . . . . . . . . . . . . Terrain Destroyed 250 | . 3 . . . . . 40 53 23 13 1 33 84 . Melee . | . . . . . . . . . . . . . . . Projectile 144 | . 3 . . . . . 40 10 23 13 1 26 28 . AOE 106 | . . . . . . . . 43 . . . 7 56 . Terrain Rammed . | . . . . . . . . . . . . . . . Walls Destroyed . | . . . . . . . . . . . . . . . Machines Disabled . | . . . . . . . . . . . . . . . Actions | -11 -10 -10 -9 -9 -9 -8 -8 -7 -6 -6 -6 -5 -4 -4 --------- Run | Scr Mat Min Mat Min Exi Min Mat Fac Fac Low Low Fac Fac Was Total 9228 | 50 760 109 614 107 40 85 1130 2417 1175 711 185 1516 241 88 Wait 456 | . 70 6 5 . . . 18 156 79 . 2 95 . 25 Move 7506 | 38 583 91 490 107 39 82 913 1987 951 669 162 1175 165 54 Hop . | . . . . . . . . . . . . . . . Pick Up 248 | 7 26 3 23 . 1 . 39 50 26 5 2 61 4 1 Fast Attach . | . . . . . . . . . . . . . . . Attach 114 | 5 12 1 17 . . . 19 12 9 5 . 21 9 4 Detach 2 | . . . . . . . . 1 . . . 1 . . Swap 121 | . 6 1 10 . . . 15 37 14 1 . 33 4 . Drop 131 | . 8 1 5 . . . 14 41 22 . 2 37 1 . Fire 630 | . 53 6 64 . . 3 103 133 73 31 16 93 52 3 Melee 16 | . . . . . . . 8 . . . 1 . 6 1 Ram 4 | . 2 . . . . . 1 . 1 . . . . . Kick . | . . . . . . . . . . . . . . . Crush . | . . . . . . . . . . . . . . . Escape Stasis . | . . . . . . . . . . . . . . . Rewire . | . . . . . . . . . . . . . . . Trap . | . . . . . . . . . . . . . . . Miscellaneous . | . . . . . . . . . . . . . . . Route ------- -11/Scrapyard -10/Materials (discovered 4 exits: *Mat x2 / [*Min x2]) -10/Mines -9/Materials (discovered 2 exits: [*Mat] / [*Min]) -9/Mines -9/Exiles -8/Mines -8/Materials (discovered 2 exits: *Fac x2) -7/Factory (discovered 2 exits: *Fac x2) -6/Factory (discovered 3 exits: *Fac / [*Low x2]) -6/Lower Caves -6/Lower Caves -5/Factory (discovered 3 exits: [*Fac] / Upp x2) -4/Factory -4/Waste History --------- Turn | Location | Event 9 | -11/Scrapyard | Discovered new exit (range 15) 43 | -11/Scrapyard | Entered Materials 53 | -10/Materials | Discovered new exit (range 15) 269 | -10/Materials | Discovered new exit (range 6) 330 | -10/Materials | Build established: Mutant 394 | -10/Materials | Repaired Lrg. Matter Pod 420 | -10/Materials | Repaired Lrg. Storage Unit 461 | -10/Materials | Discovered new exit (range 3) 849 | -10/Materials | Discovered new exit (range 12) 870 | -10/Materials | Entered Mines 887 | -10/Mines | Assembled infested the area 892 | -10/Mines | Assisted by a Guerilla fighting off Assembled 895 | -10/Mines | Met a Derelict bent on vengeance 948 | -10/Mines | Learned location of Zion (-6) 985 | -10/Mines | Discovered new exit (range 10) 997 | -10/Mines | Entered Materials 997 | -9/Materials | Evolved 2 slots: Utility x2 1586 | -9/Materials | Discovered new exit (range 3) 1720 | -9/Materials | Discovered new exit (range 15) 1729 | -9/Materials | Build established: Hauler-Mutant 1732 | -9/Materials | Repaired Imp. Ion Engine? 1808 | -9/Materials | Entered Mines 1931 | -9/Mines | Deemed a non-threat by the Exiles lab entrance 1932 | -9/Mines | Discovered new exit (range 5) 1937 | -9/Mines | Entered Exiles 1967 | -9/Exiles | Discovered new exit (range 15) 1985 | -9/Exiles | Entered Mines 2086 | -8/Mines | Discovered new exit (range 5) 2092 | -8/Mines | Entered Materials 2092 | -8/Materials | Evolved 2 slots: Utility x1, Weapon x1 2413 | -8/Materials | Discovered new exit (range 16) 2539 | -8/Materials | Build established: Hauler-Tank 2647 | -8/Materials | Lost 3 parts (1p2n) 2848 | -8/Materials | Lost 3 parts (1n2u) 2958 | -8/Materials | Lost 4 parts (1p1u2w) 3049 | -8/Materials | Core integrity fell below 50% 3074 | -8/Materials | Build established: Hauler-Mutant 3945 | -8/Materials | Discovered new exit (range 3) 4232 | -8/Materials | Entered Factory 4232 | -7/Factory | Evolved 2 slots: Propulsion x1, Utility x1 5281 | -7/Factory | Build established: Hauler-Tank 5476 | -7/Factory | Discovered new exit (range 5) 6402 | -7/Factory | Garrison activated, responded to threat 7311 | -7/Factory | Discovered new exit (range 13) 7312 | -7/Factory | Garrison activated, responded to threat 7427 | -7/Factory | Repaired Arm. Huge Wheel 7459 | -7/Factory | Repaired Hcp. Storage Unit 7572 | -7/Factory | Entered another Factory area 7572 | -6/Factory | Evolved 2 slots: Power x1, Weapon x1 7802 | -6/Factory | Garrison activated, responded to threat 8083 | -6/Factory | Discovered new exit (range 10) 8374 | -6/Factory | Discovered new exit (range 15) 8582 | -6/Factory | Repaired Hcp. Storage Unit 8944 | -6/Factory | Discovered new exit (range 11) 9188 | -6/Factory | Entered Lower Caves 9221 | -6/Lower Caves | Spotted B-75 Beast 9235 | -6/Lower Caves | Destroyed B-75 Beast 10044 | -6/Lower Caves | Identified exit to Lower Caves 10317 | -6/Lower Caves | Encountered a Warlord checkpoint 10632 | -6/Lower Caves | Attracted the attention of an 0b10 outpost 10702 | -6/Lower Caves | Lost 4 parts (1n3w) 10781 | -6/Lower Caves | Attracted the attention of an 0b10 checkpoint 10830 | -6/Lower Caves | Entered another Lower Caves area 11045 | -6/Lower Caves | Learned 12 Factory zone layouts 11129 | -6/Lower Caves | Discovered new exit (range 11) 11310 | -6/Lower Caves | Entered Factory 11310 | -5/Factory | Evolved 2 slots: Propulsion x1, Utility x1 11311 | -5/Factory | Identified exit to Upper Caves 11467 | -5/Factory | Lost 6 parts (1p3u2w) 11751 | -5/Factory | Repaired Hcp. Storage Unit 11777 | -5/Factory | Build established: Scavenger-Tank 11782 | -5/Factory | Repaired Hcp. Storage Unit? 13070 | -5/Factory | Spotted B-75 Beast 13089 | -5/Factory | Discovered new exit (range 13) 13101 | -5/Factory | Destroyed B-75 Beast 13116 | -5/Factory | Lost 5 parts (3n1u1w) 13385 | -5/Factory | Repaired Lyr. Light Armor Plating 13592 | -5/Factory | Entered another Factory area 13592 | -4/Factory | Evolved 2 slots: Utility x1, Weapon x1 13611 | -4/Factory | Build established: Hauler-Tank 13760 | -4/Factory | Garrison activated, responded to threat 13839 | -4/Factory | Destroyed 7 combat bots 13874 | -4/Factory | Garrison activated, responded to threat 13937 | -4/Factory | Lost 9 parts (1p3n2u3w) 13977 | -4/Factory | Garrison activated, responded to threat 14116 | -4/Factory | Sucked down chute 14116 | -4/Factory | Entered Waste 14117 | -4/Waste | Met a frightened Derelict 14134 | -4/Waste | Spotted C-40 Crusher 14152 | -4/Waste | Spotted C-40 Crusher 14170 | -4/Waste | Spotted C-40 Crusher 14174 | -4/Waste | Crushed by Compactor (1 part destroyed, 1 dropped) 14187 | -4/Waste | Spotted C-40 Crusher 14206 | -4/Waste | Crushed by Compactor (1 part destroyed, 1 dropped) 14207 | -4/Waste | Crushed by Compactor (1 part destroyed, 1 dropped) 14209 | -4/Waste | Crushed by Compactor (1 part destroyed, 1 dropped) 14210 | -4/Waste | Crushed by Compactor (1 part destroyed, 1 dropped) 14212 | -4/Waste | Crushed by Compactor (1 part destroyed, 2 dropped) 14213 | -4/Waste | Crushed by Compactor (1 part destroyed) 14226 | -4/Waste | Core integrity fell below 50% 14227 | -4/Waste | Crushed by Compactor (1 part destroyed) 14243 | -4/Waste | Core integrity fell below 20% 14248 | -4/Waste | Destroyed by C-40 Crusher with Compactor Last Messages --------------- 14212_ Great Axe destroyed. 14212_ Matter Compressor destroyed. 14212_ Adv. Weight Redist. System destroyed. 14213_ Mass Driver crushed. 14213_ HERF Cannon crushed. 14215_ Adv. Cooling System crushed. 14215_ Hcp. Storage Unit crushed. 14215_ Neutrino Core crushed. 14218_ Angular Momentum Engine crushed. 14218_ Com. Battery crushed. 14218_ Adv. Cooling System crushed. 14227_ Neutrino Core crushed. 14229_ Acquired Med. Treads. 14231_ AB9WIHCJBUHIYSP#DC2IPEIR 14232_ Field Recycling Unit crushed. 14232_ Wheel crushed. 14234_ Hcp. Storage Unit crushed. 14235_ Angular Momentum Engine crushed. [Achievement: Back For More] [Achievement: Just Browsing] Map ----- +----------------------------------------------------+ | ?????????????????????????????????????????????????? | | ?????????????????????????????????????????????????? | | ?????????????????????????????????????????????????? | | ?????????????????????????????????????????????????? | | ?????????????????????????????????????????????????? | | ?????????????????????????????????????????????????? | | ?????????????????????????????????????????????????? | | ?????????????????????????????????????????????????? | | ?????????????????????????????????????????????????? | | ?????????????????????????????????????????????????? | | ?????????????????????????????????????????????????? | | ?????????????????????????????????????????????????? | | ?????????????????????????????????????????????????? | | ?????????????????????????????????????????????????? | | ?????????????????????????????????????????????????? | | ?????????????????????????????????????????????????? | | ?????????????????????????????????????????????????? | | ?????????????????????????????????????????????????? | | ?????????????????????????????????????????????????? | | ?????????????????????????????????????????????????? | | ???????????????????????######????????????????????? | | ???????????????????????# #????????????????????? | | ???????????????????????# #????????????????????? | | ???????????????????????# CC#????????????????????? | | ???????????????????????# CC#????????????????????? | | ???????????????????????# @CC#????????????????????? | | ???????????????????????#CCCC#????????????????????? | | ???????????????????????#CCCC#????????????????????? | | ???????????????????????# CC#????????????????????? | | ???????????????????????# #????????????????????? | | ???????????????????????# #????????????????????? | | ???????????? ???????# #????????????????????? | | ???????????# #??????# #????????????????????? | | ???????????# #??????# #????????????????????? | | ?????????### #??????# ######## ?????????? | | ?????????# #??????# ?????????? | | ?????????# #??????# ?????????? | | ?????????? #??????# = ?????????? | | ??????????? #??????# ! ?????????? | | ???????????# #??????# ######## ?????????? | | #########??# #??????# #????????? ??????????? | | #??# #??????# #????????????????????? | | #??# #??????# #????????????????????? | | #### ######## ######???????????????? | | ??????????? | | %! ?????????? | | = ??????????? | | ??????????? | | #### ######## ######## ???????????? | | #??# #??????# #????????????????????? | +----------------------------------------------------+ Best States ------------- Heat Dissipation 94 Coolant Potential 65 Energy Generation 36 Energy Capacity 800 Matter Stores 850 Matter Capacity 850 Sight Range 16 Terrain Scan Density 10 Additional Mass Support 9 Armor Coverage 600 Resistance: KI 20 Resistance: TH 20 Resistance: EX 20 Resistance: EM 20 Resistance: I 20 Resistance: S 20 Resistance: P 20 Evasion (%) 50 Recoil Reduction 2 Offensive Hacking 10 Item Schematics ----------------- None Robot Schematics ------------------ None Fabricated ------------ Nothing Alien Tech Used ----------------- None Achievements -------------- Back For More I Survived The Infestation Just Browsing Leap Before You Look Tank Challenges ------------ None Game ------ Seed FlightSkeletonBattery Manual? 0 Play Time 03:02:08 Cumulative 43.5 hours Start 2022.02.07 @ 20:46:04 End 2022.02.09 @ 09:47:19 Sessions 9 Manual Loads 0 Difficulty Adventurer Special Mode None Game No. 50 Rogue 46 Adventurer 4 Explorer 0 Win Type - Total 0 Types 0/0/0/0/0/0/0/0/0 Lore% 7 Gallery% 25 Achievement% 16 Wizard Run 0 Options --------- ASCII 0 Keyboard 0 Movement Mouse Keybinds 0 Fullscreen 1 Font 24/Proggy Map View 113x50 Tactical HUD 1 Map Filters NONE Filters NONE Steam 1 RUN: 01b18670-2a32-40e0-b533-8122c51135ee